Cogmind - Beta 16 @@@ ROGUE MODE // 2026.01.25 @ 13:24:30 Player: luckinvolved Result: Self-destructed Performance ------------- Evolutions (2) 1000 Regions Visited (5) 1000 Robots Destroyed (37) 185 Value Destroyed (899) 899 Prototype IDs (25) 500 Alien Tech Used (0) 0 Bonus (300) 300 TOTAL SCORE: 3884 Bonus ------- Aligned with FarCom 300 Cogmind --------- Core Integrity 331/550 Matter 1/300 Energy 100/100 System Corruption 0% Temperature Cool (0) Movement Core (2450) Ox48 Location -8/Materials Parts ------- > --- POWER (1) -------- (None) > --- PROPULSION (2) --- (None) > --- UTILITY (4) ------ Cargo Storage Unit Modified TNC Light Armor Plating > --- WEAPON (4) ------- XL Autogun Subcomponent > --- INVENTORY (30) --- Light Nuclear Core Large Storage Unit Light Armor Plating Light Armor Plating Light Armor Plating Hacking Suite Thief Drone Bay (3/3) Assault Rifle Assault Rifle Peak State ------------ > --- POWER ------------ Light Ion Engine > --- PROPULSION ------- Wheel Wheel > --- UTILITY ---------- Large Storage Unit Modified TNC Light Armor Plating Thief Drone Bay > --- WEAPON ----------- XL Autogun Array > --- INVENTORY -------- Ion Engine Light Nuclear Core Wheel Cargo Storage Unit Light Armor Plating Light Armor Plating Light Armor Plating Light Armor Plating Hacking Suite Assault Rifle Assault Rifle [Rating: 55] Favorites ----------- Power Light Ion Engine Engine Light Ion Engine Propulsion Wheel Treads Light Treads Wheel Wheel Utility Large Storage Unit Device Seismic Detector Storage Large Storage Unit Processor Modified TNC Protection Light Armor Plating Weapon Assault Rifle Ballistic Gun Assault Rifle Build | -11 -10 -10 -10 -9 -8 ------- Run | Yrd Mat Min Exi Min Mat Slots Evolved 4 | . . . . . 4 Power . | . . . . . . Propulsion . | . . . . . . Utility 2 | . . . . . 2 Weapon 2 | . . . . . 2 Parts Attached 23 | 7 4 2 . . 10 Power 4 | 1 1 1 . . 1 Engine 4 | 1 1 1 . . 1 Core . | . . . . . . Reactor . | . . . . . . Propulsion 5 | 2 2 . . . 1 Treads 2 | 2 . . . . . Leg . | . . . . . . Wheel 3 | . 2 . . . 1 Hover . | . . . . . . Flight . | . . . . . . Utility 10 | 2 1 1 . . 6 Device 2 | 1 . 1 . . . Storage 3 | 1 1 . . . 1 Processor 1 | . . . . . 1 Hackware . | . . . . . . Protection 4 | . . . . . 4 Artifact . | . . . . . . Weapon 4 | 2 . . . . 2 Energy Gun . | . . . . . . Energy Cannon . | . . . . . . Ballistic Gun 4 | 2 . . . . 2 Ballistic Cannon . | . . . . . . Launcher . | . . . . . . Special Weapon . | . . . . . . Impact Weapon . | . . . . . . Slashing Weapon . | . . . . . . Piercing Weapon . | . . . . . . Special Melee Weapon . | . . . . . . Unidentified Prototypes 2 | . . 1 . . 1 Parts Lost 9 | . 3 . . . 6 Power 3 | . 1 . . . 2 Propulsion 5 | . 2 . . . 3 Utility 1 | . . . . . 1 Weapon . | . . . . . . Highest Loss Streak 6 | . 3 . . . 6 To Critical Strikes . | . . . . . . Average Backups 9 | 2 4 13 13 11 11 Power 1 | . 1 2 2 2 1 Propulsion 1 | . . 1 1 1 . Utility 5 | . 1 9 8 7 6 Weapon 1 | . 1 1 1 1 1 Tool/Special . | . . . . . . Unused Backups 8 | . . 1 4 . 3 Power 1 | . . . . . 1 Propulsion 1 | . . . 1 . . Utility 5 | . . 1 2 . 2 Weapon 1 | . . . 1 . . Tool/Special . | . . . . . . Average Slot Usage (%) 91 | . 97 100 100 100 63 Engine 12 | . 14 14 14 14 9 Treads 2 | . 11 . . . . Wheel 22 | . 14 28 28 28 17 Device 11 | . 14 14 14 14 1 Storage 12 | . 14 14 14 14 9 Processor 1 | . . . . . 8 Protection 1 | . . . . . 8 Ballistic Gun 24 | . 28 28 28 28 8 Peak Build Rating 55 | 7 8 14 18 18 55 Average Rating 17 | 5 7 9 15 18 48 On Entrance 10 | . 7 8 14 18 18 Avg Prop Armor Cover (%) . | . . . . . . Naked Turns . | . . . . . . Heaviest Build 163 | 13 28 31 31 31 163 Greatest Support 40 | 40 40 20 20 20 20 Greatest Overweight (x) 16 | 1 2 1 1 1 16 Average Overweight (x) 1 | . 1 1 1 1 6 Largest Inventory Capacity 30 | 8 15 15 15 15 30 Average Capacity 16 | 7 14 15 15 15 27 Most Carried 15 | 3 13 15 15 15 15 Average Carried 10 | 2 5 14 14 15 11 Final Capacity 30 | 8 15 15 15 15 30 Final Carried 15 | 3 13 15 15 15 9 Class Distribution -------------------- 80% | Mutant 14% | Hauler-Skirmisher Dominant Class ---------------- Mutant | -10/Materials Mutant | -10/Mines Mutant | -10/Exiles Mutant | -9/Mines Hauler-Skirmisher | -8/Materials Resources | -11 -10 -10 -10 -9 -8 ----------- Run | Yrd Mat Min Exi Min Mat Matter Collected 841 | 324 207 108 . . 202 Remotely . | . . . . . . Salvage Created 1216 | 163 242 115 . . 696 Parts 88 | 13 17 20 . . 38 Haulers Intercepted 1 | . . . . . 1 Recyclers Shooed 2 | . . 1 . . 1 Parts Field Recycled . | . . . . . . Retrieved Matter . | . . . . . . Parts Self-Destructed . | . . . . . . Prevented . | . . . . . . Parts Restored . | . . . . . . Kills | -11 -10 -10 -10 -9 -8 ------- Run | Yrd Mat Min Exi Min Mat Combat Hostiles Destroyed 25 | . 8 3 . . 14 Guns 25 | . 8 3 . . 14 Classes Destroyed 9 | 2 2 1 . . 4 Worker 1 | . . . . . 1 Builder 1 | . . . . . 1 Tunneler 8 | 5 . 3 . . . Hauler 1 | . . . . . 1 Recycler 1 | 1 . . . . . Swarmer 8 | . 3 2 . . 3 Grunt 13 | . 5 . . . 8 Sentry 3 | . . 1 . . 2 Hunter 1 | . . . . . 1 Best Kill Streak 7 | 3 4 2 . . 7 Combat Bots Only 7 | . 4 2 . . 7 Max Kills in Single Turn 2 | 1 1 2 . . 2 Gunslinging . | . . . . . . Exploded . | . . . . . . Melee . | . . . . . . Uniques/NPCs Destroyed . | . . . . . . Combat | -11 -10 -10 -10 -9 -8 -------- Run | Yrd Mat Min Exi Min Mat Hostile Shots Fired 190 | . 65 9 . . 116 Missed 47 | . 11 3 . . 33 Hits 143 | . 54 6 . . 83 Projectile 143 | . 54 6 . . 83 Critical Strikes 4 | . 1 . . . 3 Damage Taken 1805 | . 608 85 . . 1112 Core 323 | . 89 15 . . 219 Absorbed by Shields . | . . . . . . Core Remaining (%) 79 | 100 . . . 58 . Volleys Fired 84 | 9 32 11 . 1 31 Largest 2 | 2 2 2 . 2 1 Hottest 60 | 40 40 40 . 40 60 Shots Fired 137 | 18 64 22 . 2 31 Gun 137 | 18 64 22 . 2 31 Cannon . | . . . . . . Launcher . | . . . . . . Special . | . . . . . . Kinetic 137 | 18 64 22 . 2 31 Thermal . | . . . . . . Explosive . | . . . . . . Electromagnetic . | . . . . . . Robot Hit Streak 12 | 6 9 8 . 1 12 Robot Miss Streak 11 | 2 2 2 . 1 11 Penetration Max . | . . . . . . Secondary Targets 1 | . 1 . . . . Max Gunslinging Chain 1 | . 1 . . . . Shots Hit Robots 99 | 11 45 16 . 1 26 Core Hits 55 | 7 14 8 . . 26 Critical Kills . | . . . . . . Critical Parts Destroyed . | . . . . . . Critical Strikes . | . . . . . . Melee Attacks . | . . . . . . Impact . | . . . . . . Slashing . | . . . . . . Piercing . | . . . . . . Sneak Attacks . | . . . . . . Combat Hostiles . | . . . . . . Follow-up Attacks . | . . . . . . Damage Inflicted 2509 | 148 587 194 . 15 1565 Guns 2509 | 148 587 194 . 15 1565 Cannons . | . . . . . . Explosions . | . . . . . . Melee . | . . . . . . Ramming . | . . . . . . Kinetic 2509 | 148 587 194 . 15 1565 Thermal . | . . . . . . Explosive . | . . . . . . Electromagnetic . | . . . . . . Impact . | . . . . . . Slashing . | . . . . . . Piercing . | . . . . . . Highest Corruption . | . . . . . . Average Corruption . | . . . . . . Corruption Purged . | . . . . . . Corruption Blocked . | . . . . . . Overload Shots . | . . . . . . Overflow Damage . | . . . . . . Projectiles . | . . . . . . Explosions . | . . . . . . Melee . | . . . . . . Knockbacks . | . . . . . . Impact . | . . . . . . Kinetic . | . . . . . . Secondary . | . . . . . . Self-Inflicted Damage . | . . . . . . Shots . | . . . . . . Rammed . | . . . . . . Targets Rammed . | . . . . . . Kicked . | . . . . . . Crushed . | . . . . . . Highest Temperature 258 | . 9 2 . . 258 Average Temperature 68 | . 3 2 . . 82 Received Heat Transfer 594 | . 288 27 . . 279 Siege Activations . | . . . . . . Martial Activations . | . . . . . . Shielding Activations . | . . . . . . Robots Disrupted . | . . . . . . Combat Hostiles . | . . . . . . Robots Corrupted . | . . . . . . Combat Hostiles . | . . . . . . Parts Fried . | . . . . . . Impact Corruptions . | . . . . . . Robots Melted . | . . . . . . Combat Hostiles . | . . . . . . Parts Melted . | . . . . . . Heat Transferred . | . . . . . . Parts Sabotaged . | . . . . . . Parts Stolen . | . . . . . . Parts Stripped . | . . . . . . Power Chain Reactions . | . . . . . . Alert | -11 -10 -10 -10 -9 -8 ------- Run | Yrd Mat Min Exi Min Mat Maximum Alert Level 1 | . . . . . 1 Low Security (%) 95 | 100 100 100 . 100 80 Level 1 4 | . . . . . 19 Level 2 . | . . . . . . Level 3 . | . . . . . . Level 4 . | . . . . . . Level 5 . | . . . . . . High Security . | . . . . . . Max Security . | . . . . . . Peak Influence 274 | 10 111 50 . . 274 Initial . | . . . . . . Average 33 | 1 46 6 . . 79 Influence Increases 703 | 30 196 85 . . 392 Destroy 0b10 Robot/C 500 | . 160 60 . . 280 Destroy 0b10 Robot/NC 60 | 30 . 15 . . 15 Destroy Leader 102 | . 30 10 . . 62 Successful Hack 5 | . 5 . . . . Destroy Structure 21 | . 1 . . . 20 Lose Combat Pursuer 15 | . . . . . 15 Influence Decreases 469 | 30 196 85 . . 158 Time Decay 379 | 30 166 85 . . 98 Lost Part 90 | . 30 . . . 60 Squads Dispatched 5 | . 2 . . . 3 Investigation 2 | . 2 . . . . Extermination . | . . . . . . Reinforcement 1 | . . . . . 1 Assault . | . . . . . . Garrison 2 | . . . . . 2 Intercept . | . . . . . . Searches Triggered . | . . . . . . Construction Impeded . | . . . . . . Haulers Reinforced . | . . . . . . Active Scanning Responses . | . . . . . . Cargo Convoy Interrupts . | . . . . . . Stealth | -11 -10 -10 -10 -9 -8 --------- Run | Yrd Mat Min Exi Min Mat Distress Signals 3 | . 1 . . . 2 Communications Jammed . | . . . . . . Distress Signals . | . . . . . . Times Spotted 34 | . 13 2 . . 19 Peak Tracking Total 7 | . 4 1 . . 7 Tactical Retreats 1 | . . . . . 1 Traps | -11 -10 -10 -10 -9 -8 ------- Run | Yrd Mat Min Exi Min Mat Traps Triggered 1 | . 1 . . . . Indirectly . | . . . . . . Trap Hack Attempts . | . . . . . . Triggered . | . . . . . . Disarmed . | . . . . . . Reprogrammed . | . . . . . . Reused . | . . . . . . Traps Extracted . | . . . . . . Installed . | . . . . . . Triggered . | . . . . . . Machines | -11 -10 -10 -10 -9 -8 ---------- Run | Yrd Mat Min Exi Min Mat Machines Disabled . | . . . . . . Max in Single Turn . | . . . . . . Machines Repaired . | . . . . . . Machines Dismantled . | . . . . . . Machines Sabotaged . | . . . . . . Overloaded Fab Kills . | . . . . . . Hacking | -11 -10 -10 -10 -9 -8 --------- Run | Yrd Mat Min Exi Min Mat Machines Accessed 4 | . 2 1 1 . . Terminals 2 | . 2 . . . . Fabricators . | . . . . . . Repair Stations . | . . . . . . Recycling Units . | . . . . . . Scanalyzers . | . . . . . . Garrison Access . | . . . . . . Total Hacks 7 | . 5 1 1 . . Successful 4 | . 2 1 1 . . Failed 3 | . 3 . . . . Catastrophic . | . . . . . . Database Lockouts . | . . . . . . Manual 6 | . 5 . 1 . . Terminals 5 | . 5 . . . . Fabricators . | . . . . . . Repair Stations . | . . . . . . Recycling Units . | . . . . . . Scanalyzers . | . . . . . . Garrison Access . | . . . . . . Terminal Hacks 3 | . 1 1 1 . . Robot Analysis 1 | . 1 . . . . Open Door 1 | . . 1 . . . Proto ID Catalog 1 | . . . 1 . . Fabricator Hacks . | . . . . . . Repair Station Hacks . | . . . . . . Recycling Unit Hacks . | . . . . . . Scanalyzer . | . . . . . . Garrison Access Hacks . | . . . . . . Unauthorized Hacks 1 | . 1 . . . . Terminals 1 | . 1 . . . . Botnet 1 | . 1 . . . . Fabricators . | . . . . . . Repair Stations . | . . . . . . Recycling Units . | . . . . . . Scanalyzers . | . . . . . . Garrison Access . | . . . . . . Data Cores Recovered . | . . . . . . Used . | . . . . . . Hacking Detections 2 | . 2 . . . . Full Trace Events 1 | . 1 . . . . Feedback Events . | . . . . . . Feedback Blocked . | . . . . . . Robot Schematics Acquired . | . . . . . . Robots Built . | . . . . . . Authchips . | . . . . . . Time . | . . . . . . Total Robot Build Rating . | . . . . . . Part Schematics Acquired . | . . . . . . Parts Built . | . . . . . . Authchips . | . . . . . . Time . | . . . . . . Total Part Build Rating . | . . . . . . Part Studies Acquired . | . . . . . . Parts Repaired . | . . . . . . Time . | . . . . . . Parts Recycled . | . . . . . . Recycled Matter . | . . . . . . Retrieved Matter . | . . . . . . Retrieved Components . | . . . . . . Parts Scanalyzed . | . . . . . . Part Schematics Acquired . | . . . . . . Parts Damaged . | . . . . . . Bothacking | -11 -10 -10 -10 -9 -8 ------------ Run | Yrd Mat Min Exi Min Mat Used RIF Installer . | . . . . . . Robots Hacked . | . . . . . . Non-combat . | . . . . . . Combat . | . . . . . . Robot Hacks Applied . | . . . . . . Relay Couplers Released . | . . . . . . Fabnet Peak Effective % . | . . . . . . Robots Rewired . | . . . . . . Allies Hacked . | . . . . . . Hacks Repelled . | . . . . . . Allies | -11 -10 -10 -10 -9 -8 -------- Run | Yrd Mat Min Exi Min Mat Total Allies . | . . . . . . Largest Group . | . . . . . . Highest-Rated Group . | . . . . . . Highest-Rated Ally . | . . . . . . Total Orders 1 | . . 1 . . . RETURN 1 | . . 1 . . . Ally Attacks . | . . . . . . Total Damage . | . . . . . . Kills . | . . . . . . Allies Corrupted . | . . . . . . Allies Melted . | . . . . . . Intel | -11 -10 -10 -10 -9 -8 ------- Run | Yrd Mat Min Exi Min Mat Active Infowar (turns) 1090 | 35 390 351 . . 314 Seismic 776 | 35 390 351 . . . T.N.C. 314 | . . . . . 314 Robot Analysis Total 1 | . 1 . . . . Derelict Logs Recovered 1 | . . 1 . . . Drone Launches 3 | . . 3 . . . Drone Recoveries 3 | . . 3 . . . Exploration | -11 -10 -10 -10 -9 -8 ------------- Run | Yrd Mat Min Exi Min Mat Turns Passed 1717 | 166 390 418 305 109 329 Spaces Moved 1295 | 81 251 387 317 112 147 Core 9 | 9 . . . . . Treads 103 | 72 31 . . . . Legs . | . . . . . . Wheels 1183 | . 220 387 317 112 147 Hover . | . . . . . . Flight . | . . . . . . Fastest Speed 50 | 50 95 95 95 95 110 Average Speed 109 | 149 105 95 95 95 178 Slowest Speed 320 | 160 160 95 95 95 320 Overloaded Moves . | . . . . . . Propulsion Burnouts . | . . . . . . Robots Hopped . | . . . . . . Potential Cave-ins . | . . . . . . Cave-ins Triggered . | . . . . . . Exploration Rate (%) 37 | 5 55 51 62 42 9 Regions Visited 5 Branch Regions 3 Pre-discovered Areas 1 | . . 1 . . . Known Exits Taken . | . . . . . . Unknown Exits Taken 5 | 1 1 1 1 1 . Scrap Searched . | . . . . . . Spaces Dug . | . . . . . . Terrain Destroyed 23 | . . . . . 23 Melee . | . . . . . . Projectile 23 | . . . . . 23 AOE . | . . . . . . Terrain Rammed . | . . . . . . Walls Destroyed . | . . . . . . Machines Disabled . | . . . . . . Actions | -11 -10 -10 -10 -9 -8 --------- Run | Yrd Mat Min Exi Min Mat Total 1479 | 105 312 414 323 112 213 Wait 42 | 6 13 8 . . 15 Move 1290 | 80 250 386 316 111 147 Hop . | . . . . . . Pick Up 23 | 3 12 3 2 . 3 Fast Attach 9 | 7 . . . . 2 Attach 11 | . 3 . . . 8 Detach 4 | . . . . . 4 Swap 5 | . 1 4 . . . Drop 11 | . 1 2 5 . 3 Fire 84 | 9 32 11 . 1 31 Melee . | . . . . . . Ram . | . . . . . . Kick . | . . . . . . Crush . | . . . . . . Escape Stasis . | . . . . . . Rewire . | . . . . . . Trap . | . . . . . . Miscellaneous . | . . . . . . Route ------- -11/Scrapyard -10/Materials (discovered 3 exits: [*Mat] / *Min x2) -10/Mines (discovered 2 exits: [*Mat] / *Exi) -10/Exiles (discovered 2 exits: [*Min x2]) -9/Mines -8/Materials History --------- Turn | Location | Event 5 | -11/Scrapyard | Discovered new exit (range 16) 167 | -11/Scrapyard | Entered Materials 331 | -10/Materials | Discovered new exit (range 5) 342 | -10/Materials | Build established: Mutant 357 | -10/Materials | Lost 3 parts (1p2n) 400 | -10/Materials | Discovered new exit (range 8) 536 | -10/Materials | Discovered new exit (range 14) 557 | -10/Materials | Entered Mines 575 | -10/Mines | Met a Derelict bent on vengeance 606 | -10/Mines | Deemed a non-threat by the Exiles lab entrance 606 | -10/Mines | Discovered new exit (range 5) 639 | -10/Mines | Joined a pair of Derelicts in attacking an 0b10 outpost 735 | -10/Mines | Discovered new exit (range 11) 760 | -10/Mines | Learned location of Zion (-7) 837 | -10/Mines | Found the Drone Emporium 842 | -10/Mines | Found Prototype Device 842 | -10/Mines | Identified Thief Drone Bay 975 | -10/Mines | Entered Exiles 988 | -10/Exiles | Discovered new exit (range 15) 999 | -10/Exiles | Met 8R-AWN 1023 | -10/Exiles | Met EX-HEX 1051 | -10/Exiles | Met EX-BIN 1062 | -10/Exiles | Aligned with FarCom system 1063 | -10/Exiles | Given EX-Vault access code 1085 | -10/Exiles | Opened EX-Vault 1109 | -10/Exiles | Warned to stay clear of 0b10 Research branches 1124 | -10/Exiles | Exiles lab attacked by MAIN.C 1185 | -10/Exiles | Found XL Autogun Array 1188 | -10/Exiles | Found Modified TNC 1272 | -10/Exiles | Discovered new exit (range 10) 1280 | -10/Exiles | Stole two prototypes: Modified TNC, XL Autogun Array 1280 | -10/Exiles | Entered Mines 1379 | -9/Mines | Discovered new exit (range 11) 1389 | -9/Mines | Entered Materials 1389 | -8/Materials | Evolved 4 slots: Utility x2, Weapon x2 1588 | -8/Materials | Garrison activated, responded to threat 1623 | -8/Materials | Destroyed 7 combat bots 1718 | -8/Materials | Self-destructed Last Messages --------------- 01678_ U-05 Engineer builds a Wall. 01679_ K-01 Serf collects debris. 01680_ Lgt. Armor Plating destroyed. 01683_ Acquired 50 matter. 01686_ G-47 Trooper destroyed. 01687_ Lgt. Ion Engine destroyed. 01688_ G-47 Trooper destroyed. 01689_ K-01 Serf collects debris. 01697_ Destroyed Structural Scanner. 01697_ U-05 Engineer destroyed. 01698_ U-05 Engineer builds a Wall. 01703_ Wheel destroyed. 01704_ U-05 Engineer builds a Wall. XL Autogun Array falls apart. 01708_ U-05 Engineer builds a Wall. 01710_ Wheel destroyed. 01710_ Ion Engine destroyed. 01710_ Acquired Prototype Ballistic Gun. 01710_ Identified XL Autogun Subcomponent. 01712_ U-05 Engineer builds a Wall. Map ----- +----------------------------------------------------+ | | | | | | | | | | | | | ??????????????????????????????????????? | | ??????????????????????????????????????? | | ??????????????????????????????????????? | | ??????????????????????????????????????? | | ??????????????????????????????????????? | | ??????????????????????????????????????? | | ??????????????????????????????????????? | | ???????????####???????????????????????? | | ???????????# #???????????????????????? | | ???????????# #???????????????????????? | | ???????????+ +???????????????????????? | | ???????????# #???????????????????????? | | ??????????## ##??????????????????????? | | ??????????# #??????????????????????? | | ??????????# * #??????????????????????? | | ??????????#= +???????????????????#### | | ??????????# [! #???????????????????# | | ??????????## #???????????????????# | | ??????????## [#???????????????????# | | ????????#### [@#???????????????????#! | | ????????# ##[s*#???????????????????# S | | ?????????# #=su#???????????????????# " | | ??????????##%**#???????????????????##/# | | ???????????#!!=#????????????????????# # | | ???????????#!su##???????????????????# # | | ???????????#!!!!##################### # | | ???????????#Y[%! [ | | ????????# #*!= = | | ???????????# % | | ???????????# ######################## | | ???????????# #[*=]= #???????????????? | | ???????????# %# [ ! #???????????????? | | ???????????# %+!""" #???????????????? | | ???????????# # "G #???????????????? | | ???????????# %%# """ #???????????????? | | ???????????#%=*# #???????????????? | | ?????????? #=%!# ######???????????????? | | ?????????? + [###????????????????????? | | ????????? # !%##?????????????????????? | | ????????? ?#*% ##???????????a?????????? | | ???????? ?# #??????????????????????? | | ???????? ?# #??????????????????????? | | ???????##??# #??????????????????????? | | ???????????# #??????????????????????? | +----------------------------------------------------+ Best States ------------- Heat Dissipation 31 Energy Generation 10 Energy Capacity 250 Matter Stores 300 Matter Capacity 300 Sight Range 16 Terrain Scan Density 10 Armor Coverage 150 Evasion (%) 41 Recoil Reduction 2 Item Schematics ----------------- None Robot Schematics ------------------ None Fabricated ------------ Nothing Repaired ---------- Nothing Studied --------- None Alien Tech Used ----------------- None Achievements -------------- None Challenges ------------ None Game ------ Seed SuperdenseMeleeTelecube Manual? 0 Play Time 00:14:40 Cumulative 137.6 hours Start 2026.01.25 @ 13:10:36 End 2026.01.25 @ 13:24:30 Sessions 1 Manual Loads 0 Difficulty Rogue Special Mode None Game No. 172 Rogue 167 Adventurer 5 Explorer 0 Win Type - Total 3 Types 2/0/0/1/0/0/0/0/0/0 Lore% 44 Gallery% 59 Achievement% 43 Wizard Run 0 Options --------- Layout 0 ASCII 0 Keyboard 1 Movement Vi Keybinds 0 Fullscreen 1 Font 24/Smallcaps Map View 76x50 Zoom Use 0% Tactical HUD 1 Map Filters NONE Filters NONE Steam 1 RUN: 900e9c1d-65d4-4390-b970-a6507161c2d9